fUSD/lending_fUSD_20250517
["ID","MTS","AMOUNT","RATE_DAILY","PERIOD"]
[361345369,1747499443893,-450.17991328,0.00014,2]
[361345370,1747499443905,-863.95,0.00014,2]
[361345374,1747499446322,-924.14489271,0.00014,2]
[361345375,1747499446376,-103711.53022454,0.00014,2]
[361345376,1747499446387,-260.33980029,0.00014,2]
[361345377,1747499446399,-909.55000001,0.00014,2]
[361345378,1747499446587,-18225.77629069,0.00014,2]
[361345379,1747499446599,-8954.49626137,0.00014,2]
[361345380,1747499446642,-204143.56928059,0.00014,2]
[361345381,1747499446653,-862.44908716,0.00014,2]
[361345382,1747499514200,-5000.0,0.000139,2]
[361345383,1747499514223,-1381.64724073,0.000139,2]
[361345384,1747499514245,-191.5117329,0.00013929,2]
[361345385,1747499514267,-160.46531621,0.00013973,2]
[361345386,1747499514288,-4651.8627684,0.00013989,2]
[361345387,1747499514310,-571.0,0.0001399,2]
[361345388,1747499514332,-4410.5651,0.0001399,2]
[361345389,1747499514353,-4169.2674316,0.0001399,2]
[361345390,1747499514375,-3927.9697631,0.0001399,2]
[361345391,1747499514396,-3686.6720947,0.0001399,2]
[361345392,1747499514419,-300.0,0.00013999,2]
[361345393,1747499514446,-36933.27106011,0.00014,2]
[361345395,1747499588351,1304.53335216,0.00013999,5]
[361345396,1747499620742,200.45094645,0.00013999,5]
[361345397,1747499637296,168.96,0.00012198,2]
[361345398,1747499711707,690.84,0.0001174,2]
[361345445,1747499972528,150.0,0.00013063,7]
[361345448,1747500106408,-265.0,0.00013249,2]
[361345449,1747500106431,-1000.0,0.000133,2]
[361345450,1747500106454,-200.0,0.00013302,2]
[361345451,1747500106475,-351.06,0.00013303,2]
[361345452,1747500106498,-300.0,0.00013437,2]
[361345453,1747500106520,-300.0,0.00013437,2]
[361345454,1747500106543,-44795.19555,0.00013438,2]
[361345455,1747500106565,-200.0,0.00013607,2]
[361345456,1747500106587,-272.87,0.00013699,2]
[361345457,1747500106609,-265.0,0.00013721,2]
[361345458,1747500106631,-261.18,0.0001384,2]
[361345459,1747500106653,-192.0499,0.0001389,2]
[361345460,1747500106675,-2500.0,0.0001389,2]
[361345461,1747500106698,-1200.0,0.00013898,2]
[361345462,1747500106719,-150.0,0.00013899,2]
[361345463,1747500106740,-303.0345973,0.00013899,2]
[361345464,1747500106766,-510.8144386,0.00013899,2]
[361345465,1747500106791,-510.8144386,0.00013899,2]
[361345466,1747500106817,-510.8144386,0.00013899,2]
[361345467,1747500106841,-510.8144386,0.00013899,2]
[361345468,1747500106867,-510.8144386,0.00013899,2]
[361345469,1747500106892,-510.8144386,0.00013899,2]
[361345470,1747500106918,-510.8144386,0.00013899,2]
[361345471,1747500106944,-510.8144386,0.00013899,2]
[361345472,1747500106969,-510.8144386,0.00013899,2]
[361345473,1747500106996,-510.8144386,0.00013899,2]
[361345474,1747500107021,-510.8144386,0.00013899,2]
[361345475,1747500107046,-510.8144386,0.00013899,2]
[361345476,1747500107073,-510.8144386,0.00013899,2]
[361345477,1747500107100,-510.8144386,0.00013899,2]
[361345478,1747500107126,-510.8144386,0.00013899,2]
[361345479,1747500107152,-510.8144386,0.00013899,2]
[361345480,1747500107179,-510.8144386,0.00013899,2]
[361345481,1747500107206,-510.8144386,0.00013899,2]
[361345482,1747500107231,-510.8144386,0.00013899,2]
[361345483,1747500107256,-510.8144386,0.00013899,2]
[361345484,1747500107281,-510.8144386,0.00013899,2]
[361345485,1747500107307,-510.8144386,0.00013899,2]
[361345486,1747500107332,-510.8144386,0.00013899,2]
[361345487,1747500107357,-510.8144386,0.00013899,2]
[361345488,1747500107382,-510.8144386,0.00013899,2]
[361345489,1747500107408,-510.8144386,0.00013899,2]
[361345490,1747500107434,-510.8144386,0.00013899,2]
[361345491,1747500107460,-510.8144386,0.00013899,2]
[361345492,1747500107485,-510.8144386,0.00013899,2]
[361345493,1747500107511,-510.8144386,0.00013899,2]
[361345494,1747500107536,-510.8144386,0.00013899,2]
[361345495,1747500107562,-510.8144386,0.00013899,2]
[361345496,1747500107589,-510.8144386,0.00013899,2]
[361345497,1747500107616,-510.8144386,0.00013899,2]
[361345498,1747500107642,-510.8144386,0.00013899,2]
[361345499,1747500107668,-510.8144386,0.00013899,2]
[361345500,1747500107695,-510.8144386,0.00013899,2]
[361345501,1747500107721,-510.8144386,0.00013899,2]
[361345502,1747500107747,-510.8144386,0.00013899,2]
[361345503,1747500107774,-510.8144386,0.00013899,2]
[361345504,1747500107801,-510.8144386,0.00013899,2]
[361345505,1747500107827,-510.8144386,0.00013899,2]
[361345506,1747500107854,-510.8144386,0.00013899,2]
[361345507,1747500107881,-510.8144386,0.00013899,2]
[361345508,1747500107908,-510.8144386,0.00013899,2]
[361345509,1747500107934,-510.8144386,0.00013899,2]
[361345510,1747500107962,-510.8144386,0.00013899,2]
[361345511,1747500107990,-510.8144386,0.00013899,2]
[361345512,1747500108016,-510.8144386,0.00013899,2]
[361345513,1747500108044,-510.8144386,0.00013899,2]
[361345514,1747500108071,-510.8144386,0.00013899,2]
[361345515,1747500108101,-510.8144386,0.00013899,2]
[361345516,1747500108128,-510.8144386,0.00013899,2]
[361345517,1747500108156,-510.8144386,0.00013899,2]
[361345518,1747500108182,-510.8144386,0.00013899,2]
[361345519,1747500108209,-510.8144386,0.00013899,2]
[361345520,1747500108237,-510.8144386,0.00013899,2]
[361345521,1747500108263,-510.8144386,0.00013899,2]
[361345522,1747500108290,-510.8144386,0.00013899,2]
[361345523,1747500108316,-510.8144386,0.00013899,2]
[361345524,1747500108341,-510.8144386,0.00013899,2]
[361345525,1747500108366,-510.8144386,0.00013899,2]
[361345526,1747500108391,-510.8144386,0.00013899,2]
[361345527,1747500108417,-510.8144386,0.00013899,2]
[361345528,1747500108444,-510.8144386,0.00013899,2]
[361345529,1747500108469,-510.8144386,0.00013899,2]
[361345530,1747500108496,-510.8144386,0.00013899,2]
[361345531,1747500108522,-510.8144386,0.00013899,2]
[361345532,1747500108548,-510.8144386,0.00013899,2]
[361345533,1747500108576,-510.8144386,0.00013899,2]
[361345534,1747500108602,-510.8144386,0.00013899,2]
[361345535,1747500108630,-510.8144386,0.00013899,2]
[361345536,1747500108657,-510.8144386,0.00013899,2]
[361345537,1747500108683,-510.8144386,0.00013899,2]
[361345538,1747500108709,-510.8144386,0.00013899,2]
[361345539,1747500108735,-510.8144386,0.00013899,2]
[361345540,1747500108761,-510.8144386,0.00013899,2]
[361345541,1747500108788,-510.8144386,0.00013899,2]
[361345542,1747500108814,-510.8144386,0.00013899,2]
[361345543,1747500108841,-510.8144386,0.00013899,2]
[361345544,1747500108868,-510.8144386,0.00013899,2]
[361345545,1747500108894,-510.8144386,0.00013899,2]
[361345546,1747500108920,-510.8144386,0.00013899,2]
[361345547,1747500108945,-510.8144386,0.00013899,2]
[361345548,1747500108972,-510.8144386,0.00013899,2]
[361345549,1747500109260,-510.8144386,0.00013899,2]
[361345550,1747500109285,-5000.0,0.000139,2]
[361345551,1747500109310,-168.81600869,0.000139,2]
[361345552,1747500109334,-1896.22741733,0.000139,2]
[361345553,1747500109356,-1453.29099134,0.000139,2]
[361345554,1747500109379,-338.36183058,0.000139,2]
[361345555,1747500109402,-181.9361463,0.00013929,2]
[361345556,1747500109427,-193.42036834,0.00013973,2]
[361345557,1747500109450,-188.518,0.00013973,2]
[361345558,1747500109477,-1675.558,0.00013973,2]
[361345559,1747500109501,-904.17,0.00013978,2]
[361345560,1747500109524,-31634.7086939,0.00013989,2]
[361345561,1747500109546,-252.5264807,0.00013989,2]
[361345562,1747500109568,-3270.3574513,0.00013989,2]
[361345563,1747500109592,-173.91175994,0.00013989,2]
[361345564,1747500109615,-188.66286284,0.00013989,2]
[361345565,1747500109636,-178.33918685,0.00013989,2]
[361345566,1747500109662,-30024.5357047,0.0001399,2]
[361345567,1747500109684,-28414.3627155,0.0001399,2]
[361345568,1747500109707,-26804.1897263,0.0001399,2]
[361345569,1747500109730,-25194.0167371,0.0001399,2]
[361345570,1747500109753,-239.6731517,0.0001399,2]
[361345571,1747500109774,-226.8198227,0.0001399,2]
[361345572,1747500109796,-213.9664938,0.0001399,2]
[361345573,1747500109821,-201.1131648,0.0001399,2]
[361345574,1747500109846,-3159.2706389,0.0001399,2]
[361345575,1747500109867,-3048.1838265,0.0001399,2]
[361345576,1747500109889,-2937.0970141,0.0001399,2]
[361345577,1747500109912,-2826.0102017,0.0001399,2]
[361345578,1747500109936,-207.4,0.00013992,2]
[361345579,1747500109959,-150.0,0.00013999,2]
[361345580,1747500109984,-39969.32401101,0.00014,2]
[361345581,1747500110009,-517.0,0.00014,2]
[361345582,1747500110033,-646475.49982618,0.00014,2]
[361345608,1747500631580,-259.0,0.00013193,2]
[361345609,1747500631591,-190.32685517,0.00013312,2]
[361345610,1747500631633,-9.67314483,0.00013312,2]
[361345611,1747500631643,-185.2,0.00013394,2]
[361345612,1747500631653,-200.0,0.0001343,2]
[361345613,1747500631663,-259.0,0.00013666,2]
[361345614,1747500631672,-46.05577257,0.00013886,2]
[361345615,1747500631684,-297.24075789,0.00013886,2]
[361345616,1747500631693,-1200.0,0.00013899,2]
[361345617,1747500631703,-300.0,0.00013899,2]
[361345618,1747500631713,-630.2598,0.000139,2]
[361345619,1747500631723,-168.49926316,0.000139,2]
[361345620,1747500631732,-1117.34167275,0.000139,2]
[361345621,1747500631744,-466.87932725,0.000139,2]
[361345622,1747500631754,-233.30127051,0.000139,2]
[361345623,1747500631764,-6443.52955766,0.000139,2]
[361345624,1747500631774,-225.57455372,0.000139,2]
[361345625,1747500631784,-968.8606609,0.000139,2]
[361345626,1747500631795,-172.839339,0.00013929,2]
[361345627,1747500631805,-500.0,0.00013973,2]
[361345628,1747500631815,-4491.9361059,0.00013989,2]
[361345629,1747500631825,-150.0,0.00013989,2]
[361345630,1747500631834,-522.4417575,0.00013989,2]
[361345631,1747500631845,-699.2323532,0.00013989,2]
[361345633,1747500631855,-4267.4179134,0.0001399,2]
[361345635,1747500631864,-4042.8997209,0.0001399,2]
[361345637,1747500631874,-3818.3815284,0.0001399,2]
[361345639,1747500631883,-3593.8633359,0.0001399,2]
[361345641,1747500631893,-494.4599471,0.0001399,2]
[361345643,1747500631902,-466.4781367,0.0001399,2]
[361345644,1747500631911,-438.4963263,0.0001399,2]
[361345646,1747500631921,-410.5145159,0.0001399,2]
[361345648,1747500631931,-661.781696,0.0001399,2]
[361345650,1747500631940,-624.3310389,0.0001399,2]
[361345652,1747500631949,-586.8803818,0.0001399,2]
[361345654,1747500631959,-549.4297247,0.0001399,2]
[361345656,1747500631968,-207.4,0.00013992,2]
[361345658,1747500631978,-500.0,0.00013999,2]
[361345660,1747500631987,-500.0,0.00013999,2]
[361345662,1747500631996,-500.0,0.00013999,2]
[361345664,1747500632006,-500.0,0.00013999,2]
[361345666,1747500632014,-500.0,0.00013999,2]
[361345668,1747500632024,-500.0,0.00013999,2]
[361345670,1747500632033,-500.0,0.00013999,2]
[361345672,1747500632042,-500.0,0.00013999,2]
[361345674,1747500632051,-500.0,0.00013999,2]
[361345676,1747500632060,-500.0,0.00013999,2]
[361345678,1747500632069,-500.0,0.00013999,2]
[361345680,1747500632078,-436.26192636,0.00013999,2]
[361345682,1747500632088,-500.0,0.00013999,2]
[361345684,1747500632097,-201.73429737,0.00013999,2]
[361345686,1747500632106,-171.12539803,0.00014,2]
[361345688,1747500632116,-114372.27745047,0.00014,2]
[361345690,1747500632128,-71982.68717846,0.00014,2]
[361345693,1747500632141,-5205.77070804,0.00014,2]
[361345695,1747500632152,-22537.0278375,0.00014,2]
[361345697,1747500632167,-10159.28578,0.00014,2]
[361346156,1747500637444,-3677.37310313,0.00014,2]
[361346158,1747500637896,-537.13002854,0.00014,2]
[361346159,1747500637909,-92673.90030187,0.00014,2]
[361346160,1747500637921,-17335.68951032,0.00014,2]
[361346161,1747500637937,-1716.0,0.00014,2]
[361346169,1747500639594,-3000.0,0.00014,2]
[361346170,1747500639646,-55403.39132519,0.00014,2]
[361346171,1747500639660,-99210.38026323,0.00014,2]
[361346172,1747500639670,-569.0,0.00014,2]
[361346173,1747500639679,-23760.74051728,0.00014,2]
[361346174,1747500639691,-1502.246691,0.00014,2]
[361346175,1747500639750,-1676.4006398,0.00014,2]
[361346176,1747500639761,-2408.77255527,0.00014,2]
[361346177,1747500639804,-2570.36779982,0.00014,2]
[361346178,1747500639815,-256.15532,0.00014,2]
[361346179,1747500639861,-387.08042991,0.00014,2]
[361346180,1747500639916,-4280.11583853,0.00014,2]
[361346181,1747500639933,-1180.000015,0.00014,2]
[361346182,1747500640024,-1440.8991557,0.00014,2]
[361346200,1747500642537,-12917.9828306,0.00014,2]
[361346206,1747500642645,-3697.20686821,0.00014,2]
[361346207,1747500642699,-497.54494239,0.00014,2]
[361346208,1747500642754,-453.63518817,0.00014,2]
[361346209,1747500642810,-3473.27013643,0.00014,2]
[361346210,1747500642823,-2126.5779415,0.00014,2]
[361346222,1747500646224,-2124.99999612,0.00014,2]
[361346223,1747500646236,-4343.02668055,0.00014,2]
[361346224,1747500646247,-577.8250026,0.00014,2]
[361346225,1747500646258,-334.08374985,0.00014,2]
[361346226,1747500646269,-498.49800009,0.00014,2]
[361346227,1747500646280,-300.06,0.00014,2]
[361346228,1747500646291,-375.20039999,0.00014,2]
[361346229,1747500648051,-4279.8013355,0.00014,2]
[361346230,1747500648066,-373.77361933,0.00014,2]
[361346231,1747500648078,-20762.36981928,0.00014,2]
[361346232,1747500909966,168.35,0.00010579,2]
[361346233,1747501010816,718.65,0.00011294,2]
[361346234,1747501110449,400.0,0.0002739,120]
[361346235,1747501125770,254.0,0.00012139,2]
[361346236,1747501126022,254.0,0.00012622,2]
[361346239,1747501211180,3755.79,0.00012941,2]
[361346240,1747501211203,5798.28,0.00012941,2]
[361346241,1747501254062,150.0,0.00012958,7]
[361346243,1747501461204,3553.24,0.00013,2]
[361346244,1747501467854,1607.85,0.00013,2]
[361346245,1747501485757,249.0,0.00012106,2]
[361346246,1747501492864,249.0,0.0001259,2]
[361346248,1747501513407,468.01,0.00012875,2]
[361346249,1747501513559,468.01,0.00012878,2]
[361346250,1747501513737,468.01,0.00012882,2]
[361346251,1747501514766,468.01,0.00012885,2]
[361346253,1747501520673,468.01,0.00012888,2]
[361346254,1747501520776,468.01,0.00012892,2]
[361346255,1747501521000,468.01,0.00012895,2]
[361346256,1747501521202,468.01,0.00012899,2]
[361346257,1747501522962,468.01,0.00012902,2]
[361346258,1747501523166,468.01,0.00012905,2]
[361346259,1747501523571,468.01,0.00012909,2]
[361346260,1747501528264,468.01,0.00012912,2]
[361346261,1747501528311,468.01,0.00012916,2]
[361346262,1747501528341,468.01,0.00012919,2]
[361346263,1747501528619,468.01,0.00012922,2]
[361346264,1747501528819,468.01,0.00012926,2]
[361346265,1747501529028,468.01,0.00012929,2]
[361346266,1747501529245,468.01,0.00012933,2]
[361346267,1747501529448,468.01,0.00012936,2]
[361346268,1747501529662,468.01,0.00012939,2]
[361346269,1747501575728,512.3967346,0.00022,30]
[361346270,1747501584641,150.0,0.00012878,2]
[361346272,1747501639553,-249.0,0.00013073,3]
[361346273,1747501639576,-200.0,0.00013083,2]
[361346274,1747501639600,-163.91,0.00013093,2]
[361346275,1747501639623,-200.0,0.00013096,2]
[361346276,1747501639645,-200.0,0.00013107,2]
[361346277,1747501639667,-154.64742573,0.00013124,2]
[361346278,1747501639689,-3432.21,0.00013181,2]
[361346279,1747501639711,-1000.0,0.00013224,2]
[361346280,1747501639732,-200.0,0.00013255,2]
[361346281,1747501639754,-207.4,0.00013299,2]
[361346282,1747501639777,-241.75,0.00013352,2]
[361346283,1747501639804,-249.0,0.00013557,3]
[361346284,1747501639826,-718.65,0.00013558,2]
[361346285,1747501639848,-184.28,0.00013671,2]
[361346286,1747501639870,-259.22,0.00013699,2]
[361346287,1747501639893,-1200.0,0.00013775,2]
[361346288,1747501639915,-300.0,0.00013775,2]
[361346289,1747501639938,-1789.0,0.00013776,2]
[361346290,1747501639964,-273.0,0.00013844,2]
[361346291,1747501639987,-325.42,0.00013878,2]
[361346292,1747501640009,-406.67770329,0.00013889,2]
[361346293,1747501640032,-209.65738236,0.000139,2]
[361346294,1747501640055,-168.81600866,0.000139,2]
[361346295,1747501640077,-166.55221696,0.000139,2]
[361346296,1747501640099,-154.64742573,0.000139,2]
[361346297,1747501640123,-603.54089292,0.000139,2]
[361346298,1747501640148,-173.77957004,0.000139,2]
[361346299,1747501640175,-690.78711373,0.000139,2]
[361346300,1747501640199,-226.27945894,0.000139,2]
[361346301,1747501640221,-150.3830358,0.000139,2]
[361346302,1747501640244,-645.90710726,0.000139,2]
[361346303,1747501640266,-1164.42766729,0.000139,2]
[361346304,1747501640289,-164.197372,0.00013929,2]
[361346305,1747501640312,-150.0,0.00013972,2]
[361346306,1747501640334,-626.15653127,0.00013973,2]
[361346307,1747501640356,-501.00564254,0.00013973,2]
[361346308,1747501640377,-500.0,0.00013973,2]
[361346309,1747501640400,-500.0,0.00013973,2]
[361346310,1747501640421,-500.0,0.00013973,2]
[361346311,1747501640444,-500.0,0.00013973,2]
[361346312,1747501640469,-515.52361657,0.00013973,2]
[361346313,1747501640491,-366.65455142,0.00013973,2]
[361346314,1747501640515,-500.0,0.00013973,2]
[361346315,1747501640539,-311.3274912,0.00013989,2]
[361346316,1747501640562,-382.53270588,0.00013989,2]
[361346317,1747501640584,-511.9790678,0.00013989,2]
[361346318,1747501640606,-411.4195043,0.0001399,2]
[361346319,1747501640629,-511.5115174,0.0001399,2]
[361346320,1747501640651,-611.6035304,0.0001399,2]
[361346321,1747501640673,-711.6955435,0.0001399,2]
[361346322,1747501640696,-150.0,0.00013999,2]
[361346323,1747501640719,-1340.447,0.00013999,2]
[361346324,1747501640741,-195.67151121,0.00014,2]
[361346325,1747501640767,-345816.2475643,0.00014,2]
[361346326,1747501640791,-510.0,0.00014,2]
[361346327,1747501640815,-118496.0938415,0.00014,2]
[361346328,1747501644085,306.91,0.00012858,2]
[361346329,1747501678188,327.88,0.0002739,120]
[361346330,1747501767274,-856.403487,0.00013731,2]
[361346331,1747501767297,-153.38983687,0.000139,2]
[361346332,1747501767319,-431.3882433,0.000139,2]
[361346333,1747501767342,-1392.18656668,0.000139,2]
[361346334,1747501767368,-333.749037,0.000139,2]
[361346335,1747501767391,-155.9875034,0.00013929,2]
[361346336,1747501767414,-200.0,0.0001395,2]
[361346337,1747501767438,-200.0,0.0001398,2]
[361346338,1747501767462,-811.78755691,0.00013989,2]
[361346339,1747501767484,-150.0,0.00013999,2]
[361346340,1747501767511,-195.67151121,0.00014,2]
[361346341,1747501767538,-172908.12378215,0.00014,2]
[361346342,1747501767563,-311399.23247548,0.00014,2]
[361346346,1747501831630,-155.9875034,0.00013929,2]
[361346347,1747501831640,-300.0,0.00013972,2]
[361346348,1747501831649,-500.35340861,0.00013973,2]
[361346349,1747501831659,-500.61411979,0.00013973,2]
[361346350,1747501831669,-500.0,0.00013973,2]
[361346351,1747501831679,-500.0,0.00013973,2]
[361346352,1747501831689,-460.24012794,0.00013973,2]
[361346353,1747501831699,-500.0,0.00013973,2]
[361346354,1747501831708,-167.36782628,0.0001399,2]
[361346355,1747501831717,-150.0,0.00013999,2]
[361346356,1747501831726,-300.0,0.00013999,2]
[361346357,1747501831735,-1200.0,0.00013999,2]
[361346358,1747501831744,-500.0,0.00013999,2]
[361346359,1747501831754,-500.0,0.00013999,2]
[361346360,1747501831763,-648.46821166,0.00013999,2]
[361346361,1747501831772,-500.0,0.00013999,2]
[361346362,1747501831781,-500.0,0.00013999,2]
[361346363,1747501831790,-500.0,0.00013999,2]
[361346364,1747501831799,-500.0,0.00013999,2]
[361346365,1747501831808,-500.0,0.00013999,2]
[361346366,1747501831817,-500.0,0.00013999,2]
[361346367,1747501831826,-37448.1863112,0.00014,2]
[361346368,1747501831850,-15614.834,0.00014,2]
[361346376,1747501831861,-118192.27507599,0.00014,2]
[361346379,1747501832205,-61696.91995835,0.00014,2]
[361346381,1747501832216,-1710.0,0.00014,2]
[361346383,1747501832227,-1860.41560526,0.00014,2]
[361346385,1747501832237,-258.86457099,0.00014,2]
[361346388,1747501832252,-381.7991848,0.00014,2]
[361346390,1747501832268,-2175.2004,0.00014,2]
[361346394,1747501832296,-957.70112046,0.00014,2]
[361346396,1747501832307,-692.37,0.00014,2]
[361346399,1747501832322,-1024.24093525,0.00014,2]
[361346401,1747501832333,-2455.8,0.00014,2]
[361346403,1747501832344,-1197.39758578,0.00014,2]
[361346408,1747501832376,-52085.0,0.00014,2]
[361346410,1747501832387,-12942.4546099,0.00014,2]
[361346412,1747501832398,-4374.39851776,0.00014,2]
[361346414,1747501832409,-450.05155706,0.00014,2]
[361346416,1747501832420,-854.25476081,0.00014,2]
[361346418,1747501832430,-389.9341405,0.00014,2]
[361346448,1747501838745,-508.3474196,0.000139,2]
[361346449,1747501838754,-171.12539802,0.00014,2]
[361346450,1747501838763,-11725.2081515,0.00014,2]
[361346451,1747501838778,-494.03033,0.00014,2]
[361346452,1747501838789,-313147.9491502,0.00014,2]
[361346453,1747501838798,-102154.2351566,0.00014,2]
[361346454,1747501838807,-672.43205882,0.00014,2]
[361346455,1747501838817,-14754.2192115,0.00014,2]
[361346456,1747501838826,-268802.43092906,0.00014,2]
[361346463,1747501839761,-817.8114958,0.00014,2]
[361346464,1747501839776,-106759.22770297,0.00014,2]
[361346466,1747501841897,-308.64,0.00014,2]
[361346467,1747501841956,-802.12912624,0.00014,2]
[361346468,1747501841968,-849.65057865,0.00014,2]
[361346469,1747501842009,-1828.50767955,0.00014,2]
[361346470,1747501842020,-144435.98109986,0.00014,2]
[361346471,1747501842031,-917.66534124,0.00014,2]
[361346514,1747501846759,-0.0029336,0.00013041,2]
[361346518,1747501868462,2135.92479,7.945e-05,2]
[361346537,1747502025244,646.78,0.00011476,2]
[361346545,1747502166312,167.96401651,7.5e-07,2]
[361346546,1747502511672,254.0,0.00012041,2]
[361346547,1747502513172,254.0,0.00012526,2]
[361346548,1747502522502,150.0,0.00013095,7]
[361346549,1747502719645,192.90880565,9e-05,2]
[361346550,1747502728840,201.05873436,0.00011,2]
[361346551,1747502740533,3742.55,0.00012973,2]
[361346552,1747502798811,616.04,0.00012989,2]
[361346553,1747502828319,2313.619733,7.945e-05,2]
[361346554,1747502870285,249.0,0.0001201,2]
[361346555,1747502870521,249.0,0.00012495,2]
[361346556,1747502870754,249.0,0.00012979,3]
[361346568,1747503003958,400.0,0.0002739,120]
[361346569,1747503015800,200.0,0.000121,2]
[361346574,1747503031771,-247.77,0.00013028,2]
[361346575,1747503031781,-1200.0,0.00013054,2]
[361346576,1747503031791,-300.0,0.00013054,2]
[361346577,1747503031801,-1285.762684,0.00013055,2]
[361346578,1747503031846,183.06,0.00012835,2]
[361346580,1747503037810,-2338.17631962,0.00013055,2]
[361346584,1747503040206,-1737.87477172,0.00013055,2]
[361346585,1747503040218,-1547.5,0.00013055,2]
[361346586,1747503040231,-3073.4114174,0.00013055,2]
[361346588,1747503046063,-3037.29650617,0.00013055,2]
[361346589,1747503048962,1000.0,0.00012954,2]
[361346590,1747503125917,200.0,0.00012936,2]
[361346591,1747503144004,693.61,0.00011041,2]
[361346592,1747503194572,507.71,0.00012937,2]
[361346593,1747503225670,242.0,0.00012464,2]
[361346594,1747503225906,242.0,0.00012944,2]
[361346595,1747503247149,307.44,0.00012934,2]
[361346596,1747503322664,168.96,0.00010318,2]
[361346597,1747503399975,150.0,0.00014,5]
[361346599,1747503585684,237.0,0.00012424,2]
[361346600,1747503586447,237.0,0.00012905,2]
[361346601,1747503659596,250.0,0.00012868,2]
[361346602,1747503711753,161.3,0.00012891,2]
[361346603,1747503785010,-1200.0,0.00013054,2]
[361346604,1747503785034,-186.0,0.00013054,2]
[361346605,1747503785059,-300.0,0.00013054,2]
[361346606,1747503785083,-10879.97830109,0.00013055,2]
[361346607,1747503785106,-1527.54,0.00013055,2]
[361346608,1747503785129,-200.0,0.00013089,2]
[361346609,1747503785155,-200.0,0.000131,2]
[361346610,1747503785180,-200.0,0.00013176,2]
[361346611,1747503785204,-169.87,0.00013278,2]
[361346612,1747503785227,-207.4,0.00013299,2]
[361346613,1747503785250,-693.61,0.00013305,2]
[361346614,1747503785271,-165.64,0.00013313,2]
[361346615,1747503785293,-237.0,0.00013386,3]
[361346616,1747503785314,-457.61,0.000135,2]
[361346617,1747503785337,-246.25,0.00013699,2]
[361346618,1747503785360,-200.0,0.00013699,2]
[361346619,1747503785383,-407.5446,0.000138,2]
[361346620,1747503785404,-500.0,0.000138,2]
[361346621,1747503785428,-317.6803,0.000138,2]
[361346622,1747503785454,-250.65192293,0.00013846,2]
[361346623,1747503785476,-237.0,0.00013866,3]
[361346624,1747503785499,-150.0,0.00013898,2]
[361346625,1747503785521,-1003.51598088,0.00013899,2]
[361346626,1747503785547,-199558.26465942,0.00013899,2]
[361346627,1747503785568,-239.018,0.000139,2]
[361346628,1747503785592,-1381.64724075,0.000139,2]
[361346629,1747503785616,-9750.34882944,0.000139,2]
[361346630,1747503785641,-224.15150853,0.000139,2]
[361346631,1747503785666,-442.86287098,0.000139,2]
[361346632,1747503785690,-2354.11028048,0.000139,2]
[361346633,1747503785712,-789.83620929,0.000139,2]
[361346634,1747503785735,-155.9875034,0.00013929,2]
[361346635,1747503785762,-500.0,0.00013972,2]
[361346636,1747503785790,-500.0,0.00013972,2]
[361346637,1747503785816,-500.0,0.00013972,2]
[361346638,1747503785841,-500.0,0.00013972,2]
[361346639,1747503785866,-500.0,0.00013972,2]
[361346640,1747503785891,-472.46801997,0.00013972,2]
[361346641,1747503785914,-500.0,0.00013973,2]
[361346642,1747503785937,-500.0,0.00013973,2]
[361346643,1747503785960,-500.0,0.00013973,2]
[361346644,1747503785982,-500.0,0.00013973,2]
[361346645,1747503786003,-436.0,0.00013973,2]